Workbook

Sheet 試算シートの使い方
A1: 退職手当試算シート【定年扱い退職者用】の使用について
H2: R7.6.17 現在
A3: １ 用意するもの
A4: （１） | B4: 履歴書
A5: （２） | B5: 給与明細（満６０歳年度内最新のもの）
A6: （３） | B6: 給与明細（退職年度内最新のもの）
A8: ２ 使用方法
A9: （１） | B9: 入力シートを開きます。
A10: （２） | B10: 入力シートの説明を参考に履歴書等を見ながら該当箇所に入力してください。
A12: ※ 不明な点は、所属の事務職員に確認するか、福利課企画管理班まで御連絡く
A13: ださい。（022-211-3672）
A61: ３ 試算結果の印刷
A63: （１） ５ 調整額まで入力し終わりましたら、印刷シートを開きます。
A76: （２） 試算結果が表示されていますので、印刷してください。
A78: （３） 試算結果が表示されていますので、印刷してください。
A79: （２） 試算結果が表示されていますので、印刷してください。
A80: （１） 試算結果が表示されていますので、印刷してください。
A81: （０） 試算結果が表示されていますので、印刷してください。
A82: （１） 試算結果が表示されていますので、印刷してください。

Sheet 入力シート
B2: 退職手当試算入力シート【定年扱い退職者用】
AN3: 入力箇所(必須） | BA3: 入力箇所（場合によって）
B5: こちらのシートは、定年引上げ後の定年扱い退職年度に退職される方の、おおよその退職手当額を試算します。 正確な退職手当額は昇給等を考慮した上で決定されることとなりますので、参考程度にお考えください。 黄色セル、（場合によっては）青色セルに入力してください。
A7: 1 | B7: 試算希望者の氏名を入力してください。
B9: 氏 名
B10: 福 花子
A13: 2 | B13: 退職事由を選んでください。（プルダウンから選択してください。）
B14: 定年扱い | Q14: ※退職事由によって退職手当額が大きく異なります。
Q15: ※退職年月日が６０歳の誕生日以降であれば、定年を選んでください。
A17: 2 | B17: 採用年月日、満60歳年度末及び退職年月日を入力してください。
B18: また、休職等除算期間がある場合には入力してください。
B20: 採用年月日 | P20: 1990-04-01 | AJ20: 満60歳年度末勤続期間 | AX20: =TRUNC(IF(MONTH(P22)<MONTH(P20),(YEAR(P22)-YEAR(P20))*12+MONTH(P22)-MONTH(P20)+1,(YEAR(P22)-YEAR(P20))*12+MONTH(P22)-MONTH(P20)+1)/12) -> 35 | BB20: 年 | BF20: =MOD(IF(MONTH(P22)<MONTH(P20),(YEAR(P22)-YEAR(P20))*12+MONTH(P22)-MONTH(P20)+1,(YEAR(P22)-YEAR(P20))*12+MONTH(P22)-MONTH(P20)+1),12) -> 0 | BJ20: 月 | BO20: a | BQ20: =(YEAR(P22)-YEAR(P20))*12+MONTH(P22)-MONTH(P20)+1 -> 420 | BV20: 満60歳
B22: 満60歳年度末年月日 | P22: 2025-03-31 | AJ22: 退職時勤続期間 | AX22: =TRUNC(((YEAR(P24)-YEAR(P20))*12 + MONTH(P24) - MONTH(P20) + 1) / 12) -> 36 | BB22: 年 | BF22: =MOD((YEAR(P24)-YEAR(P20))*12 + MONTH(P24) - MONTH(P20) + 1, 12) -> 0 | BJ22: 月 | BO22: a' | BQ22: =(YEAR(P24)-YEAR(P20))*12+MONTH(P24)-MONTH(P20)+1 -> 432 | BV22: 定年退職時
B24: 退職年月日 | P24: 2026-03-31
B26: ※ 前歴に他の公務員期間があり、引き続いて採用になった方は、その期間が通算される場合があります。
B27: この場合には、前歴も含めた採用年数を入力してください。
C28: (1) 育児休業
F29: 子の誕生日 | P29: 1993-12-25 | AW29: 除算（１）
F30: 休業期間 | P30: 1994-02-19 | AD30: ～ | AH30: 1995-03-31 | AW30: =IFERROR(ROUNDDOWN(BW33/12,0),0) -> 0 | BB30: 年 | BE30: =IFERROR(MOD(BW33,12),0) -> 4.8 | BK30: 月除算
P32: 子が１歳になる日 | BL32: 月数 | BN32: 割合
F33: =EOMONTH(P33,-1) -> 1994-11-30 | P33: =P29+364 -> 1994-12-24 | AA33: ① | AD33: =IF(P30="","",IF(DAY(P30)=1,P30,IF(DAY(P30)<>1,EOMONTH(P30,0)+1,""))) -> 1994-03-01 | AV33: =IF(AH30>P33,EOMONTH(F33,1),IF(AH30="","",IF(EOMONTH(AH30,0)<>AH30,EOMONTH(AH30,-1),IF(AH30=EOMONTH(AH30,0),AH30,"")))) -> 1994-12-31 | BJ33: =IFERROR(DATEDIF(AD33,AV33,"M")+1,"") -> 10 | BN33: 3 | BS33: =IFERROR(ROUNDDOWN(BJ33/BN33,1),0) -> 3.3 | BW33: =IFERROR(BS33+BS34,"") -> 4.8
AA34: ② | AD34: =IF(AV33<>F33,AV33+1,"") -> 1995-01-01 | AV34: =IF(AH30="","",IF(EOMONTH(AH30,0)<>AH30,EOMONTH(AH30,-1),IF(AH30=EOMONTH(AH30,0),AH30,""))) -> 1995-03-31 | BJ34: =IFERROR(DATEDIF(AD34,AV34,"M")+1,"") -> 3 | BN34: 2 | BS34: =IF(BJ34="",0,(ROUNDDOWN(BJ34/BN34,1))) -> 1.5
C36: (2) 休職、停職、大学院修学休業
F37: 休業種類 | P37: 休職 | AW37: 除算（２）
F38: 休業期間 | P38: 2020-01-02 | AD38: ～ | AH38: 2020-03-31 | AW38: =IFERROR(ROUNDDOWN(BW41/12,0),0) -> 0 | BB38: 年 | BE38: =IFERROR(MOD(BW41,12),0) -> 1 | BK38: 月除算
BL40: 月数 | BN40: 割合
AD41: =IF(P38="","",IF(DAY(P38)=1,P38,IF(DAY(P38)<>1,EOMONTH(P38,0)+1,""))) -> 2020-02-01 | AV41: =IF(AH38="","",IF(EOMONTH(AH38,0)<>AH38,EOMONTH(AH38,-1),IF(AH38=EOMONTH(AH38,0),AH38,""))) -> 2020-03-31 | BJ41: =IFERROR(DATEDIF(AD41,AV41,"M")+1,"") -> 2 | BN41: 2 | BS41: =IFERROR(ROUNDDOWN(BJ41/BN41,1),0) -> 1 | BW41: =IFERROR(BS41+BS42,"") -> 1 | BZ41: ｂ | CA41: =IFERROR(BZ42*12+CB42,0) -> 19.8
BS42: =IF(BJ42="",0,(ROUNDDOWN(BJ42/BN42,1))) -> 0 | BZ42: =IFERROR(AW30+AW38,"")+P47 -> 1 | CA42: 年 | CB42: =IFERROR(BE30+BE38,"")+W47 -> 7.8 | CC42: 月
C45: (3) 上記以外に除算期間がある場合
AG46: 勤続年数 | AS46: 満60歳年度末 | BF46: =IF(BU46="",0,IF(AND(BU46>=6,BU46<12),1,IFERROR(ROUNDDOWN(BU46/12,0),"1"))) -> 33 | BM46: 年 | BP46: a-b | BU46: =IF(BQ20="","",IFERROR(BQ20-CA41,"")) -> 400.2
F47: さらに除く年月数 | P47: 1 | U47: 年 | W47: 2 | AB47: 月 | BP47: a'-b | BU47: =IF(BQ22="","",IFERROR(BQ22-CA41,"")) -> 412.2
AS48: 退職時 | BF48: =IF(BU47="",0,IF(AND(BU47>=6,BU47<12),1,IFERROR(ROUNDDOWN(BU47/12,0),"1"))) -> 34 | BM48: 年
AG49: （１年未満切り捨て）
B51: ※ 除算期間が（１）、（２）以外にある場合は、下記の表を参考に（３）に入力してください。
A64: 3 | B64: 給料表、号俸と、教職調整額、給料の調整額（発令されている場合）を入力します。
B65: 手元にある書類にしたがって、（１）と（２）どちらかに入力してください。
B67: （１）手元にあるものが履歴書の場合
D68: ※ 満60歳年度の最新の給与発令を入力してください。
D69: 満61歳年度の7割措置後の給料額等は自動計算されます。
B70: 給料表 | U70: 号俸 | AN70: 給料の調整数
B71: 教育（二） | U71: 3 | Z71: 級 | AC71: 50 | AH71: 号俸
U73: 3 | AC73: .
U74: =IFERROR(給料表計算シート!E12,"") -> 397900
B75: 労務職員（技能職給料表適用職員）の場合は平成２７年３月３１日現在の号俸も入力して下さい。 | U75: Ｈ27.3.31現在号俸 | AN75: Ｈ27.3.31現在仮定月額
R76: ⇒ | Z76: 級 | AH76: 号俸 | AN76: =IF(給料表計算シート!E21="",0,給料表計算シート!E21) -> 0 | BA76: 円
B79: 給料（給料表上の月額）A | U79: 教職調整額 B | AN79: 給料の調整額 C
B80: =IF(U74>AN76,U74,IF(U74>AN76,U74,AN76)) -> 397900 | O80: 円 | U80: =IF(AND(B71="教",U71=4),0, IF(AND(B71="教育（一）",U71=3),7700, IF(AND(B71="教育（二）",U71=3),7500, IF(AND(B71<>"教",ISNUMBER(SEARCH("教",B71)),OR(U71=1,U71=2)),B80*0.04, 0)))) -> 7500 | AH80: 円 | AN80: =IF(AN71=1, 給料表計算シート!F12, 0) -> 0 | BA80: 円 | BG80: =SUM(B80+U80+AN80) -> 405400
B83: ７割措置後の給料 D （A×70％） | U83: ７割措置後の教職調整額 E（D×4％ 教育職のみ） | AN83: ７割措置後の給料の調整額 F（C×70％ 教育職のみ）
B84: =ROUND(B80 * 0.7, -2) -> 278500 | O84: 円 | U84: =IF(OR(B71="教育（一）", B71="教育（二）"), B84 * 0.04, 0) -> 11140 | AH84: 円 | AN84: =ROUNDDOWN(AN80*0.7,-2) -> 0 | BA84: 円 | BG84: =SUM(B84+U84+AN84) -> 289640
A87: ※ | B87: 教育（一）は高校等の教員、教育（二）は小中学校の教員の給料表です。
A88: ※ | B88: 医療職（二）は栄養職員等の給料表です。
B103: （２）手元にあるものが給与明細の場合
D104: ※ 満６０歳年度内の最新の明細と退職年度内最新の明細を参照してください。
B105: 満60歳年度給料月額（調整額含） | AD105: 満60歳年度教職調整額
X106: 円 | AZ106: 円 | BN106: =SUM(B106+AD106) -> 0
B109: 退職年度給料月額（調整額含） | AD109: 退職年度教職調整額
X110: 円 | AZ110: 円 | BN110: =SUM(B110+AD110) -> 0
A126: 4 | B126: 調整額を算出します。
B127: 満６０歳の年度から遡って６年間の、職名または給料表および号俸を入力してください。
B129: （１）教職職給料表(一)(二)が適用されている者
B130: 年度 | Q130: 職名 | Z130: 区分 | AF130: 調整月数 | AL130: 調整額
BY131: 校長 | BZ131: 第５号 | CA131: 54150
B132: 満６０歳の年度 | Q132: 教頭 | Z132: =IF(Q132="","",VLOOKUP(Q132,$BY$131:$CA$135,2,0)) -> 第７号 | AF132: =IF(ISBLANK(Q132), "", 12) -> 12 | AL132: =IF(Q132="","",VLOOKUP(Q132,$BY$131:$CA$135,3,0)*AF132) -> 390000 | BY132: 副校長 | BZ132: 第６号 | CA132: 43350
BY133: 教頭 | BZ133: 第７号 | CA133: 32500
B134: 満５９歳の年度 | Q134: 教頭 | Z134: =IF(Q134="","",VLOOKUP(Q134,$BY$131:$CA$135,2,0)) -> 第７号 | AF134: =IF(ISBLANK(Q134), "", 12) -> 12 | AL134: =IF(Q134="","",VLOOKUP(Q134,$BY$131:$CA$135,3,0)*AF134) -> 390000 | BY134: 教諭(特２) | BZ134: 第８号 | CA134: 27100
BY135: 教諭 | BZ135: 第９号 | CA135: 21700
B136: 満５８歳の年度 | Q136: 教頭 | Z136: =IF(Q136="","",VLOOKUP(Q136,$BY$131:$CA$135,2,0)) -> 第７号 | AF136: =IF(ISBLANK(Q136), "", 12) -> 12 | AL136: =IF(Q136="","",VLOOKUP(Q136,$BY$131:$CA$135,3,0)*AF136) -> 390000
B138: 満５７歳の年度 | Q138: 教諭 | Z138: =IF(Q138="","",VLOOKUP(Q138,$BY$131:$CA$135,2,0)) -> 第９号 | AF138: =IF(ISBLANK(Q138), "", 12) -> 12 | AL138: =IF(Q138="","",VLOOKUP(Q138,$BY$131:$CA$135,3,0)*AF138) -> 260400
B140: 満５６歳の年度 | Q140: 教諭 | Z140: =IF(Q140="","",VLOOKUP(Q140,$BY$131:$CA$135,2,0)) -> 第９号 | AF140: =IF(ISBLANK(Q140), "", 12) -> 12 | AL140: =IF(Q140="","",VLOOKUP(Q140,$BY$131:$CA$135,3,0)*AF140) -> 260400 | BA140: （１）合計 | BG140: =SUM( IFERROR(LARGE(AF132:AK143, 1), 0), IFERROR(LARGE(AF132:AK143, 2), 0), IFERROR(LARGE(AF132:AK143, 3), 0), IFERROR(LARGE(AF132:AK143, 4), 0), IFERROR(LARGE(AF132:AK143, 5), 0) ) -> 60 | BM140: 月
B142: 満５５歳の年度 | Q142: 教諭 | Z142: =IF(Q142="","",VLOOKUP(Q142,$BY$131:$CA$135,2,0)) -> 第９号 | AF142: =IF(ISBLANK(Q142), "", 12) -> 12 | AL142: =IF(Q142="","",VLOOKUP(Q142,$BY$131:$CA$135,3,0)*AF142) -> 260400 | BD142: =SUM( IFERROR(LARGE(AL132:AS143, 1), 0), IFERROR(LARGE(AL132:AS143, 2), 0), IFERROR(LARGE(AL132:AS143, 3), 0), IFERROR(LARGE(AL132:AS143, 4), 0), IFERROR(LARGE(AL132:AS143, 5), 0) ) -> 1690800 | BM142: 円
B145: （２）上記以外の者
B146: 年度 | Q146: 給料表 | Y146: 号俸 （級） | AF146: 区分 | AL146: 調整月数 | AR146: 調整額
BY147: =Q148&Y148 ->  | BZ147: 行政７級 | CA147: 第５号 | CB147: 54150
B148: 満６０歳の年度 | AF148: =IF(OR(Q148="",Y148=""),"",VLOOKUP(BY147,$BZ$147:$CB$170,2,0)) ->  | AL148: =IF(ISBLANK(Q148), "", 12) ->  | AR148: =IF(OR(Q148="",Y148=""),"",VLOOKUP(BY147,$BZ$147:$CB$170,3,0)*AL148) ->  | BY148: =Q150&Y150 ->  | BZ148: 行政６級 | CA148: 第６号 | CB148: 43350
BY149: =Q152&Y152 ->  | BZ149: 行政５級 | CA149: 第７号 | CB149: 32500
B150: 満５９歳の年度 | AF150: =IF(OR(Q150="",Y150=""),"",VLOOKUP(BY148,$BZ$147:$CB$170,2,0)) ->  | AL150: =IF(ISBLANK(Q150), "", 12) ->  | AR150: =IF(OR(Q150="",Y150=""),"",VLOOKUP(BY148,$BZ$147:$CB$170,3,0)*AL150) ->  | BY150: =Q154&Y154 ->  | BZ150: 行政４級 | CA150: 第８号 | CB150: 27100
BY151: =Q156&Y156 ->  | BZ151: 行政３級 | CA151: 第９号 | CB151: 21700
B152: 満５８歳の年度 | AF152: =IF(OR(Q152="",Y152=""),"",VLOOKUP(BY149,$BZ$147:$CB$170,2,0)) ->  | AL152: =IF(ISBLANK(Q152), "", 12) ->  | AR152: =IF(OR(Q152="",Y152=""),"",VLOOKUP(BY149,$BZ$147:$CB$170,3,0)*AL152) ->  | BY152: =Q158&Y158 ->  | BZ152: 行政２級 | CA152: 第１０号 | CB152: 0
BY153: =B159&H159 ->  | BZ153: 行政１級 | CA153: 第１０号 | CB153: 0
B154: 満５７歳の年度 | AF154: =IF(OR(Q154="",Y154=""),"",VLOOKUP(BY150,$BZ$147:$CB$170,2,0)) ->  | AL154: =IF(ISBLANK(Q154), "", 12) ->  | AR154: =IF(OR(Q154="",Y154=""),"",VLOOKUP(BY150,$BZ$147:$CB$170,3,0)*AL154) ->  | BZ154: 研究５級 | CA154: 第４号 | CB154: 59550
BZ155: 研究４級 | CA155: 第６号 | CB155: 43350
B156: 満５６歳の年度 | AF156: =IF(OR(Q156="",Y156=""),"",VLOOKUP(BY151,$BZ$147:$CB$170,2,0)) ->  | AL156: =IF(ISBLANK(Q156), "", 12) ->  | AR156: =IF(OR(Q156="",Y156=""),"",VLOOKUP(BY151,$BZ$147:$CB$170,3,0)*AL156) ->  | BA156: （２）合計 | BG156: =SUM( IFERROR(LARGE(AL148:AQ159, 1), 0), IFERROR(LARGE(AL148:AQ159, 2), 0), IFERROR(LARGE(AL148:AQ159, 3), 0), IFERROR(LARGE(AL148:AQ159, 4), 0), IFERROR(LARGE(AL148:AQ159, 5), 0) ) -> 0 | BM156: 月 | BZ156: 研究３級 | CA156: 第８号 | CB156: 27100
BZ157: 研究２級 | CA157: 第９号 | CB157: 21700
B158: 満５５歳の年度 | AF158: =IF(OR(Q158="",Y158=""),"",VLOOKUP(BY152,$BZ$147:$CB$170,2,0)) ->  | AL158: =IF(ISBLANK(Q158), "", 12) ->  | AR158: =IF(OR(Q158="",Y158=""),"",VLOOKUP(BY152,$BZ$147:$CB$170,3,0)*AL158) ->  | BD158: =SUM( IFERROR(LARGE(AR148:AY159, 1), 0), IFERROR(LARGE(AR148:AY159, 2), 0), IFERROR(LARGE(AR148:AY159, 3), 0), IFERROR(LARGE(AR148:AY159, 4), 0), IFERROR(LARGE(AR148:AY159, 5), 0) ) -> 0 | BM158: 円 | BZ158: 研究１級 | CA158: 第１０号 | CB158: 0
BZ159: 医療（二）７級 | CA159: 第５号 | CB159: 54150
BZ160: 医療（二）６級 | CA160: 第６号 | CB160: 43350
AF161: 調整額合計は | AW161: =IF(AX22<=4, BD142/2, BD142) + IF(AX22<=4, BD158/2, BD158) -> 1690800 | BJ161: 円 | BZ161: 医療（二）５級 | CA161: 第８号 | CB161: 27100
BZ162: 医療（二）４級 | CA162: 第９号 | CB162: 21700
AU163: （調整月数計 | BD163: =BG140+BG156 -> 60 | BH163: 月） | BZ163: 医療（二）３級 | CA163: 第９号 | CB163: 21700
BO164: # 使用例 | BZ164: 医療（二）２級 | CA164: 第１０号 | CB164: 0
BZ165: 医療（二）１級 | CA165: 第１０号 | CB165: 0
BZ166: 技能５級 | CA166: 第８号 | CB166: 27100
BO167: result = adjust_bd126(15, 100) # 15は10～24の範囲内なのでBD126の値100を2分の1にして50を返す | BZ167: 技能４級 | CA167: 第９号 | CB167: 21700
BO168: print(result) # 出力: 50 | BZ168: 技能３級 | CA168: 第９号 | CB168: 21700
BZ169: 技能２級 | CA169: 第１０号 | CB169: 0
BO170: result = adjust_bd126(25, 100) # 25は範囲外なのでBD126の値100をそのまま返す | BZ170: 技能１級 | CA170: 第１０号 | CB170: 0
BO171: print(result) # 出力: 100

Sheet 印刷シート
B2: 退職手当計算内訳書 （試算） | K2: 氏名： | M2: =IF(入力シート!B10="","",入力シート!B10) -> 福 花子 | Q2: =TODAY() -> 2025-08-08 | V2: 現在 | AD2: =IF(入力シート!B14="自己都合","自己都合",IF(入力シート!B14="定年扱い","定年扱い")) -> 定年扱い
K3: 事由： | M3: =$AD$2&"退職" -> 定年扱い退職
B4: 給与等 | F4: 満60歳年度の給料月額 | O4: 退職時の給料月額
B5: 給料月額 | C5: 級号俸 | F5: =入力シート!B71 -> 教育（二）
F6: =IF(入力シート!U71="","",IF(F7=入力シート!AN76,入力シート!U76,入力シート!U71)) -> 3 | I6: 級 | J6: =IF(入力シート!AC71="","",IF(F7=入力シート!AN76,入力シート!AC76,入力シート!AC71)) -> 50 | M6: 号俸
C7: 給料 | F7: =入力シート!$B$80+入力シート!$B$106 -> 397900 | M7: 円 | O7: =入力シート!$B$84+入力シート!$B$110 -> 278500 | V7: 円
C8: 教職調整額 | F8: =入力シート!$U$80+入力シート!$AD$106 -> 7500 | M8: 円 | O8: =入力シート!$U$84+入力シート!$AD$110 -> 11140 | V8: 円
C9: 給料の調整額 | F9: =入力シート!AN80 -> 0 | M9: 円 | O9: =入力シート!AN84 -> 0 | V9: 円 | Y9: =K11*12+M11 -> 420 | Z9: =T11*12+V11 -> 432
B10: 計 | F10: =SUM(F7:L9) -> 405400 | M10: 円（Ａ） | O10: =SUM(O7:U9) -> 289640 | V10: 円（Ｂ）
B11: 勤続年数 | D11: 在職年数（ア） | F11: =入力シート!P20 -> 1990-04-01 | J11: から | K11: =入力シート!$AX$20 -> 35 | L11: 年 | M11: =入力シート!$BF$20 -> 0 | N11: 月 | O11: =入力シート!P20 -> 1990-04-01 | S11: から | T11: =入力シート!$AX$22 -> 36 | U11: 年 | V11: =入力シート!$BF$22 -> 0 | W11: 月 | Y11: =SUM(T13:T18) -> 1 | Z11: 除算年計
F12: =入力シート!P22 -> 2025-03-31 | J12: まで | O12: =入力シート!P24 -> 2026-03-31 | S12: まで | Y12: =ROUNDDOWN((Y15)/12,0) -> 0
D13: 除算年数（イ） | F13: =IF(AND(入力シート!$AW$30=0,入力シート!$BE$30=0),"",入力シート!AD33) -> 1994-03-01 | M13: から | Q13: =IF(F13="","","育休") -> 育休 | T13: =IF(Q13="","",入力シート!AW30) -> 0 | U13: 年 | V13: =IF(Q13="","",入力シート!BE30) -> 4.8 | W13: 月 | Y13: =MOD(Y15,12) -> 7.8
F14: =IF(AND(入力シート!$AW$30=0,入力シート!$BE$30=0),"",入力シート!AV34) -> 1995-03-31 | M14: まで | O14: （１）
F15: =IF(AND(入力シート!$AW$38=0,入力シート!$BE$38=0),"",入力シート!AD41) -> 2020-02-01 | M15: から | Q15: =IF(F15="","",入力シート!$P$37) -> 休職 | T15: =IF(Q15="","",入力シート!AW38) -> 0 | U15: 年 | V15: =IF(Q15="","",入力シート!BE38) -> 1 | W15: 月 | Y15: =SUM(V13:V18) -> 7.8 | Z15: 除算月計
F16: =IF(AND(入力シート!AW38,入力シート!BE38=0),"",入力シート!AV41) -> 2020-03-31 | M16: まで | O16: （２）
F17: さらに除く年月数 | Q17: =IF(F17="","","その他") -> その他 | T17: =IF(Q17="","",入力シート!P47) -> 1 | U17: 年 | V17: =IF(Q17="","",入力シート!W47) -> 2 | W17: 月
O18: （３） | Y18: =Y9-(Y13+(Y11+Y12)*12) -> 400.2 | AA18: =Z9-(Y13+(Y11+Y12)*12) -> 412.2
H19: 計 | T19: =+Y11+Y12 -> 1 | U19: 年 | V19: =Y13 -> 7.8 | W19: 月
D20: 合計（ウ）＝（ア）－（イ） | K20: =IF(Y20>0,Y20,0) -> 33 | L20: 年 | M20: =IF(Z20>0,Z20,0) -> 4.2 | N20: 月 | T20: =IF(AA20>0,AA20,0) -> 34 | U20: 年 | V20: =IF(AB20>0,AB20,0) -> 4.2 | W20: 月 | Y20: =ROUNDDOWN(Y18/12,0) -> 33 | Z20: =Y18-Y20*12 -> 4.2 | AA20: =ROUNDDOWN(AA18/12,0) -> 34 | AB20: =AA18-AA20*12 -> 4.2
B21: 支給率 | F21: =計算シート!K6 -> 45.32355 | M21: （ロ） | O21: =計算シート!K7 -> 46.83015 | V21: （イ） | AD21: 事由 | AF21: 年数 | AM21: 【参考】
F22: 勤続年数 | J22: =K20 -> 33 | M22: 年 | O22: 勤続年数 | S22: =T20 -> 34 | V22: 年 | AD22: =入力シート!B14 -> 定年扱い | AE22: =IF(AD22="自己都合",2,1) -> 1 | AF22: =V24 -> 0 | AG22: =IF(AE22=1,"",IF(AND(AE22=2,AF22>19),2,1)) ->  | AH22: =IF(AE22=2,"",IF(AND(AF22>=20,AF22<=35),6,IF(AF22>35,7,""))) -> 
B23: 調整額（ハ） | F23: =入力シート!AW161 -> 1690800 | T23: 円 | Z23: 1 | AA23: 3 | AB23: 2 | AG23: =IF(AE22=2,"",IF(AND(AE22=1,AF22<12),3,IF(AND(AE22=1,AF22>=11,AF22<25),4,5))) -> 3 | AI23: 1 | AJ23: 自己都合 | AK23: ～１９
Z24: 2 | AA24: 3 | AB24: 1 | AI24: 2 | AJ24: 自己都合 | AK24: ２０～
B25: 適用条項 | F25: 職員の退職手当に関する条例第 | O25: =VLOOKUP(AG$25,Z$23:AB$27,2) -> 3 | P25: 条 | Q25: 第 | R25: =VLOOKUP($AG$25,$Z$23:$AB$27,3) -> 1 | S25: 項 | Z25: 3 | AA25: 3 | AB25: 1 | AG25: =SUM(AG22:AG24) -> 3 | AI25: 3 | AJ25: 定年 | AK25: ～１１
F26: 昭和 | I26: =IFERROR(VLOOKUP($AH$22,$Z$28:$AB$29,2),"") ->  | J26: 年条例第 | L26: =IFERROR(VLOOKUP($AH$22,$Z$28:$AC$29,3),"") ->  | M26: 号附則第 | P26: =IFERROR(VLOOKUP($AH$22,$Z$28:$AC$29,4),"") ->  | R26: 項 | Z26: 4 | AA26: 4 | AB26: 1 | AI26: 4 | AJ26: 定年 | AK26: １１～２４
B27: 退職手当の計算式 | F27: （Ａ）×（ロ）＋（Ｂ）× {（イ）－（ロ）｝＋ 調整額（ハ） | Z27: 5 | AA27: 5 | AB27: 1 | AI27: 5 | AJ27: 定年 | AK27: ２５～
F28: =F10 -> 405400 | H28: × | I28: =F21 -> 45.32355 | K28: ＋ | L28: =O10 -> 289640 | N28: ×（ | O28: =O21 -> 46.83015 | Q28: － | S28: =F21 -> 45.32355 | U28: ）＋ | V28: =F23 -> 1690800 | Z28: 6 | AA28: 本則 | AB28: 附則 | AC28: 21 | AI28: 6 | AJ28: 定年等 | AK28: ２０～３５
B29: 退職手当決定額 | F29: =INT((F10*F21)+O10*(O21-F21)+F23) -> 20501338 | T29: 円 | Z29: 7 | AA29: 本則 | AB29: 附則 | AC29: 23 | AI29: 7 | AJ29: 定年等 | AK29: ３６～
B31: 控除額 | C31: 徴 | D31: ①所得税 | J31: 円 | K31: ※ 退職時のおおよその金額です。
C32: 収 | D32: ②市町村民税 | J32: 円 | L32: 正確な退職手当額は経過措置や昇給等を考慮した上で
C33: 税 | D33: ③県民税 | J33: 円 | L33: 決定されますので、参考程度にお考えください。
C34: 額 | D34: 計 | J34: 円 | L34: また、この退職手当計算内訳書は今後の退職手当額 | Z34: =IFERROR(IF(計算シート!K6="","",計算シート!K6),0) -> 45.32355 | AA34: 満60
C35: ④給与に係る住民税 | L35: を保障するものではありません。 | Z35: =IFERROR(IF(計算シート!K7="","",計算シート!K7),0) -> 46.83015 | AA35: 定年
C36: 一括徴収税額 | J36: 円 | L36: （今後の条例改正等により実際の退職手当額が試算額
C37: ⑤共済組合貸付償還金 | J37: 円 | L37: を下回ることがあります。）
J38: 円 | L38: なお、実際は、左記①～⑤を控除した残額が支給額と
J39: 円 | L39: なります。
C40: =IF(OR(G40=0,G40=""),"","その他(法務局供託金)") ->  | J40: 円
C41: 合計 | J41: 円 | L41: 入力シートに入力した内容に誤りがある場合は、正しく
B42: 現金支給額 | J42: 円 | L42: 計算されません。

Sheet 【参考】調整額区分表
A1: 退職手当の調整額に関する区分表
A3: イ １９年３月３１日までの適用区分
A4: 区分 | B4: 第１号 | C4: 第２号 | D4: 第３号 | E4: 第４号 | F4: 第５号 | G4: 第６号 | H4: 第７号 | I4: 第８号 | J4: 第９号 | K4: 第１０号
A5: 調整月額 | B5: 78750 | C5: 70400 | D5: 65000 | E5: 59550 | F5: 54150 | G5: 43350 | H5: 32500 | I5: 27100 | J5: 21700 | K5: 0
A6: 行政職 | D6: １１級 期20% | E6: １０級 期20% | F6: ９級 期15% | G6: ８級 期15% | H6: ７級 期10% | I6: ６級 期10% | J6: ５級・４級 期5% | K6: ３級・２級・１級
A7: 教育職(二) | E7: ４級 期20% | F7: ４級 管16%・管14% 期15% | G7: ４級 期15% | H7: ３級 期10% ２級期10%のうち注８の者 | I7: ２級 期10% | J7: ２級・１級 期5% | K7: ２級・１級
A8: 教育職(三) | E8: ４級 期20% | F8: ４級 管16%・管14% 期15% | G8: ４級 期15% | H8: ３級 期10% ２級期10%のうち注８の者 | I8: ２級 期10% | J8: ２級 期5% | K8: ２級・１級
A9: 研究職 | D9: ５級 管25% 期20% | E9: ５級 期20% | F9: ４級 管18% 期15% | G9: ４級 期15% ３級のうち注４の職 | H9: ３級のうち注５の職 | I9: ３級 期10% | J9: ２級 期5% | K9: ２級・１級
A10: 医療職(二) 医療職(三) | F10: ７級 期15% | G10: ６級 期15% | H10: ５級のうち注６の職 | I10: ５級 期10% | J10: ４級 期5% ３級 期5% | K10: 3級・2級・1級
A11: 技能職 | I11: ５級 期10% | J11: ４級 期5% ３級 期5% ２級 期5% | K11: ４級・３級・ ２級・１級
A13: ロ １９年４月１日から21年３月31日までの適用区分
A14: 区分 | B14: 第１号 | C14: 第２号 | D14: 第３号 | E14: 第４号 | F14: 第５号 | G14: 第６号 | H14: 第７号 | I14: 第８号 | J14: 第９号 | K14: 第１０号
A15: 調整月額 | B15: 78750 | C15: 70400 | D15: 65000 | E15: 59550 | F15: 54150 | G15: 43350 | H15: 32500 | I15: 27100 | J15: 21700 | K15: 0
A16: 行政職 | C16: １０級 期20% | D16: ９級 期20% | E16: ８級 期20% | F16: ７級 期15% | G16: ６級 期15% | H16: ５級 期10% | I16: ４級 期10% | J16: ３級 期5% | K16: ２級・１級
A17: 教育職(二) | E17: ４級 期20% | F17: ４級 管６種 期15% | G17: ４級 期15% | H17: ３級 期10% ２級期10%のうち注８の者 | I17: ２級 期10% | J17: ２級・１級 期5% | K17: ２級・１級
A18: 教育職(三) | E18: ４級 期20% | F18: ４級 管６種 期15% | G18: ４級 期15% | H18: ３級 期10% ２級期10%のうち注８の者 | I18: ２級 期10% | J18: ２級 期5% | K18: ２級・１級
A19: 研究職 | D19: ５級 管１種 期20% | E19: ５級 期20% | F19: ４級 管４種 期15% | G19: ４級 期15% ３級のうち注４の職 | H19: ３級のうち注５の職 | I19: ３級 期10% | J19: ２級 期5% | K19: ２級・１級
A20: 医療職(二) 医療職(三) | F20: ７級 期15% | G20: ６級 期15% | H20: ５級のうち注７の職 | I20: ５級 期10% | J20: ４級 期5% ３級 期5% | K20: 3級・2級・1級
A21: 技能職 | I21: ４級 期10% | J21: ３級 期5% ２級 期5% | K21: ３級・２級・１級
A23: ハ ２１年４月１日からの適用区分（技能職については平成２７年３月３１日までの適用区分）
A24: 区分 | B24: 第１号 | C24: 第２号 | D24: 第３号 | E24: 第４号 | F24: 第５号 | G24: 第６号 | H24: 第７号 | I24: 第８号 | J24: 第９号 | K24: 第１０号
A25: 調整月額 | B25: 78750 | C25: 70400 | D25: 65000 | E25: 59550 | F25: 54150 | G25: 43350 | H25: 32500 | I25: 27100 | J25: 21700 | K25: 0
A26: 行政職 | C26: １０級 期20% | D26: ９級 期20% | E26: ８級 期20% | F26: ７級 期15% | G26: ６級 期15% | H26: ５級 期10% | I26: ４級 期10% | J26: ３級 期5% | K26: ２級・１級
A27: 教育職(一) | E27: ４級 期20% | F27: ４級 管６種 期15% | G27: ４級期15% ３級管６種 | H27: ３級 期10% ２級期10%のうち注８の者 特２級のうち特２級在職４年以上又は注８の者 | I27: ２級期10% 特２級 | J27: ２級・１級 期5% | K27: ２級・１級
A28: 教育職(二) | E28: ４級 期20% | F28: ４級 管６種 期15% | G28: ４級期15% ３級管６種 | H28: ３級 期10% ２級期10%のうち注８の者 特２級のうち特２級在職４年以上又は注８の者 | I28: ２級期10% 特２級 | J28: ２級 期5% | K28: ２級・１級
A29: 研究職 | D29: ５級 管１種 期20% | E29: ５級 期20% | F29: ４級 管４種 期15% | G29: ４級 期15% ３級のうち注４の職 | H29: ３級のうち注５の職 | I29: ３級 期10% | J29: ２級 期5% | K29: ２級・１級
A30: 医療職(二) 医療職(三) | F30: ７級 期15% | G30: ６級 期15% | H30: ５級のうち注７の職 | I30: ５級 期10% | J30: ４級 期5% ３級 期5% | K30: 3級・2級・1級
A31: 技能職 | I31: ４級 期10% | J31: ３級 期5% ２級 期5% | K31: ３級・２級・１級
A33: ニ ２７年４月１日からの適用区分
A34: 区分 | B34: 第１号 | C34: 第２号 | D34: 第３号 | E34: 第４号 | F34: 第５号 | G34: 第６号 | H34: 第７号 | I34: 第８号 | J34: 第９号 | K34: 第１０号
A35: 調整月額 | B35: 78750 | C35: 70400 | D35: 65000 | E35: 59550 | F35: 54150 | G35: 43350 | H35: 32500 | I35: 27100 | J35: 21700 | K35: 0
A36: 技能職 | I36: ５級 期10% | J36: ４級 期5% ３級 期5% | K36: ４級・３級・ ２級・１級
A38: 注１ 期 ％ ： 期末手当等の役職段階別加算割合 | G38: 注８ 勤続期間が博士課程修了にあっては30年以上，修士課程修了に
A39: 注２ 管 ％ ： 管理職手当の支給割合 | G39: あっては33年以上，大学卒にあっては35年以上，短大卒にあっては
A40: 注３ 管 種 ： 管理職手当の支給額により区分 | G40: 37年以上，高校卒にあっては39年以上であった者
A41: 注４ 技術副参事，総括研究員
A42: 注５ 技術補佐，技術次長又は上席主任研究員
A43: 注６ 技術補佐，技術次長又は上席技術主幹
A44: 注７ 技術補佐，技術次長

Sheet 特に級読替表 (hidden)
B1: 行 政 職 給 料 表
C4: 職務 | D4: １ 級 | F4: ２ 級 | H4: ３ 級 | J4: ４ 級 | L4: ５ 級 | N4: ６ 級 | P4: ７ 級 | R4: ８ 級 | T4: ９ 級
C5: の級
B6: 特 に | D6: 読 替 号 俸
E7: 号俸 | G7: 号俸 | I7: 号俸 | K7: 号俸 | M7: 号俸 | O7: 号俸 | Q7: 号俸 | S7: 号俸 | U7: 号俸
B8: 特(1) | D8: 189000 | E8: 17 | F8: 245400 | G8: 20 | H8: 317400 | I8: 33 | J8: 364700 | K8: 29 | L8: 382200 | M8: 27 | N8: 417900 | O8: 25 | P8: 428400 | Q8: 23 | R8: 452300 | S8: 22 | T8: 488400 | U8: 19
B9: 特(2) | D9: 190600 | E9: =E8+1 -> 18 | F9: 247200 | G9: =G8+1 -> 21 | H9: 319200 | I9: =I8+1 -> 34 | J9: 366900 | K9: =K8+1 -> 30 | L9: 384800 | M9: =M8+1 -> 28 | N9: 421300 | O9: =O8+1 -> 26 | P9: 431900 | Q9: =Q8+1 -> 24 | R9: 455900 | S9: =S8+1 -> 23 | T9: 492500 | U9: =U8+1 -> 20
B10: 特(3) | D10: 192200 | E10: =E9+1 -> 19 | F10: 249000 | G10: =G9+1 -> 22 | H10: 321000 | I10: =I9+1 -> 35 | J10: 369100 | K10: =K9+1 -> 31 | L10: 387400 | M10: =M9+1 -> 29 | N10: 424700 | O10: =O9+1 -> 27 | P10: 435400 | Q10: =Q9+1 -> 25 | R10: 459500 | S10: =S9+1 -> 24 | T10: 496600 | U10: =U9+1 -> 21
B11: 特(4) | D11: 193800 | E11: =E10+1 -> 20 | F11: 250800 | G11: =G10+1 -> 23 | H11: 322800 | I11: =I10+1 -> 36 | J11: 371300 | K11: =K10+1 -> 32 | L11: 390000 | M11: =M10+1 -> 30 | N11: 428100 | O11: =O10+1 -> 28 | P11: 438900 | Q11: =Q10+1 -> 26 | R11: 463100 | S11: =S10+1 -> 25 | T11: 500700 | U11: =U10+1 -> 22
B12: 特(5) | D12: 195400 | E12: =E11+1 -> 21 | F12: 252600 | G12: =G11+1 -> 24 | H12: 324600 | I12: =I11+1 -> 37 | J12: 373500 | K12: =K11+1 -> 33 | L12: 392600 | M12: =M11+1 -> 31 | N12: 431500 | O12: =O11+1 -> 29 | P12: 442400 | Q12: =Q11+1 -> 27 | R12: 466700 | S12: =S11+1 -> 26 | T12: 504800 | U12: =U11+1 -> 23
B15: 教 育 職 給 料 表（二）県立 | N15: 教 育 職 給 料 表（三）小中
C18: 職務 | D18: １ 級 | F18: ２ 級 | H18: ３ 級 | J18: ４ 級 | N18: １ 級 | P18: ２ 級 | R18: ３ 級 | T18: ４ 級
C19: の級
B20: 特 に | D20: 読 替 号 俸 | N20: 読 替 号 俸
E21: 号俸 | G21: 号俸 | I21: 号俸 | K21: 号俸 | O21: 号俸 | Q21: 号俸 | S21: 号俸 | U21: 号俸
B22: 特(1) | D22: 361600 | E22: 41 | F22: 467300 | G22: 38 | H22: 505900 | I22: 24 | J22: 527900 | K22: 16 | N22: 315200 | O22: 34 | P22: 451900 | Q22: 41 | R22: 473000 | S22: 27 | T22: 500800 | U22: 16
B23: 特(2) | D23: 363600 | E23: =E22+1 -> 42 | F23: 470100 | G23: =G22+1 -> 39 | H23: 509900 | I23: =I22+1 -> 25 | J23: 532300 | K23: =K22+1 -> 17 | N23: 316900 | O23: =O22+1 -> 35 | P23: 454300 | Q23: =Q22+1 -> 42 | R23: 475800 | S23: =S22+1 -> 28 | T23: 504700 | U23: =U22+1 -> 17
B24: 特(3) | D24: 365600 | E24: =E23+1 -> 43 | F24: 472900 | G24: =G23+1 -> 40 | H24: 513900 | I24: =I23+1 -> 26 | J24: 536700 | K24: =K23+1 -> 18 | N24: 318600 | O24: =O23+1 -> 36 | P24: 456700 | Q24: =Q23+1 -> 43 | R24: 478600 | S24: =S23+1 -> 29 | T24: 508600 | U24: =U23+1 -> 18
B25: 特(4) | D25: 367600 | E25: =E24+1 -> 44 | F25: 475700 | G25: =G24+1 -> 41 | H25: 517900 | I25: =I24+1 -> 27 | J25: 541100 | K25: =K24+1 -> 19 | N25: 320300 | O25: =O24+1 -> 37 | P25: 459100 | Q25: =Q24+1 -> 44 | R25: 481400 | S25: =S24+1 -> 30 | T25: 512500 | U25: =U24+1 -> 19
B26: 特(5) | D26: 369600 | E26: =E25+1 -> 45 | F26: 478500 | G26: =G25+1 -> 42 | H26: 521900 | I26: =I25+1 -> 28 | J26: 545500 | K26: =K25+1 -> 20 | N26: 322000 | O26: =O25+1 -> 38 | P26: 461500 | Q26: =Q25+1 -> 45 | R26: 484200 | S26: =S25+1 -> 31 | T26: 516400 | U26: =U25+1 -> 20
B29: 医 療 職 給 料 表 （二） 栄養職
C31: 職務 | D31: １ 級 | F31: ２ 級 | H31: ３ 級 | J31: ４ 級 | L31: ５ 級 | N31: ６ 級 | P31: ７ 級 | S31: 履歴書に、
C32: の級 | S32: 「特に○○○○○円」と記載が
B33: 特 に | D33: 読 替 号 俸 | S33: ある場合は「特に級」発令者
E34: 号俸 | G34: 号俸 | I34: 号俸 | K34: 号俸 | M34: 号俸 | O34: 号俸 | Q34: 号俸 | S34: です。
B35: 特(1) | D35: 241900 | E35: 24 | F35: 303000 | G35: 29 | H35: 367700 | I35: 31 | J35: 386100 | K35: 28 | L35: 424100 | M35: 24 | N35: 452300 | O35: 22 | P35: 488400 | Q35: 19 | S35: その場合は、履歴書にある金額
B36: 特(2) | D36: 243600 | E36: =E35+1 -> 25 | F36: 304700 | G36: =G35+1 -> 30 | H36: 369900 | I36: =I35+1 -> 32 | J36: 388700 | K36: =K35+1 -> 29 | L36: 427500 | M36: =M35+1 -> 25 | N36: 455900 | O36: =O35+1 -> 23 | P36: 492500 | Q36: =Q35+1 -> 20 | S36: を参考に、読替号俸を、
B37: 特(3) | D37: 245300 | E37: =E36+1 -> 26 | F37: 306400 | G37: =G36+1 -> 31 | H37: 372100 | I37: =I36+1 -> 33 | J37: 391300 | K37: =K36+1 -> 30 | L37: 430900 | M37: =M36+1 -> 26 | N37: 459500 | O37: =O36+1 -> 24 | P37: 496600 | Q37: =Q36+1 -> 21 | S37: 入力シートの５の号俸欄に入力
B38: 特(4) | D38: 247000 | E38: =E37+1 -> 27 | F38: 308100 | G38: =G37+1 -> 32 | H38: 374300 | I38: =I37+1 -> 34 | J38: 393900 | K38: =K37+1 -> 31 | L38: 434300 | M38: =M37+1 -> 27 | N38: 463100 | O38: =O37+1 -> 25 | P38: 500700 | Q38: =Q37+1 -> 22 | S38: してください。
B39: 特(5) | D39: 248700 | E39: =E38+1 -> 28 | F39: 309800 | G39: =G38+1 -> 33 | H39: 376500 | I39: =I38+1 -> 35 | J39: 396500 | K39: =K38+1 -> 32 | L39: 437700 | M39: =M38+1 -> 28 | N39: 466700 | O39: =O38+1 -> 26 | P39: 504800 | Q39: =Q38+1 -> 23
B42: 研 究 職 給 料 表 | N42: 例
C45: 職務 | D45: １ 級 | F45: ２ 級 | H45: ３ 級 | J45: ４ 級 | L45: ５ 級
C46: の級
B47: 特 に | D47: 読 替 号 俸
E48: 号俸 | G48: 号俸 | I48: 号俸 | K48: 号俸 | M48: 号俸
B49: 特(1) | D49: 307000 | E49: 33 | F49: 371000 | G49: 30 | H49: 439200 | I49: 26 | J49: 488200 | K49: 24 | L49: 578800 | M49: 24 | O49: ①まず、H19.4.1以前の給与の最終発令を確認します。
B50: 特(2) | D50: 308900 | E50: =E49+1 -> 34 | F50: 373700 | G50: =G49+1 -> 31 | H50: 442500 | I50: =I49+1 -> 27 | J50: 492000 | K50: =K49+1 -> 25 | L50: 582800 | M50: =M49+1 -> 25 | O50: ②もし特に級が発令されていた場合は、
B51: 特(3) | D51: 310800 | E51: =E50+1 -> 35 | F51: 376400 | G51: =G50+1 -> 32 | H51: 445800 | I51: =I50+1 -> 28 | J51: 495800 | K51: =K50+1 -> 26 | L51: 586800 | M51: =M50+1 -> 26 | O51: 給料表と金額をたよりに読替号俸を探してください。
B52: 特(4) | D52: 312700 | E52: =E51+1 -> 36 | F52: 379100 | G52: =G51+1 -> 33 | H52: 449100 | I52: =I51+1 -> 29 | J52: 499600 | K52: =K51+1 -> 27 | L52: 590800 | M52: =M51+1 -> 27
B53: 特(5) | D53: 314600 | E53: =E52+1 -> 37 | F53: 381800 | G53: =G52+1 -> 34 | H53: 452400 | I53: =I52+1 -> 30 | J53: 503400 | K53: =K52+1 -> 28 | L53: 594800 | M53: =M52+1 -> 28
B56: 技 能 職 等 給 料 表
C59: 職務 | D59: １ 級 | F59: ２ 級 | H59: ３ 級 | J59: ４ 級 | L59: ５ 級
C60: の級
B61: 特 に | D61: 読 替 号 俸 | O61: ③例の場合は、教育職給料表（二）の
E62: 号俸 | G62: 号俸 | I62: 号俸 | K62: 号俸 | M62: 号俸 | O62: ２級と、金額467,300円の交差するところをみます。
B63: 特(1) | D63: 308000 | E63: 45 | F63: 317400 | G63: 34 | H63: 364700 | I63: 32 | J63: 382200 | K63: 29 | L63: 417900 | M63: 27 | O63: 交点の「３８号俸」がこの方の読替号俸となります。
B64: 特(2) | D64: 309800 | E64: =E63+1 -> 46 | F64: 319200 | G64: =G63+1 -> 35 | H64: 366900 | I64: =I63+1 -> 33 | J64: 384800 | K64: =K63+1 -> 30 | L64: 421300 | M64: =M63+1 -> 28
B65: 特(3) | D65: 311600 | E65: =E64+1 -> 47 | F65: 321000 | G65: =G64+1 -> 36 | H65: 369100 | I65: =I64+1 -> 34 | J65: 387400 | K65: =K64+1 -> 31 | L65: 424700 | M65: =M64+1 -> 29 | O65: 入力シートの５、H19.3.31現在の号俸欄に「２級３８号俸」と入力
B66: 特(4) | D66: 313400 | E66: =E65+1 -> 48 | F66: 322800 | G66: =G65+1 -> 37 | H66: 371300 | I66: =I65+1 -> 35 | J66: 390000 | K66: =K65+1 -> 32 | L66: 428100 | M66: =M65+1 -> 30 | O66: してください。467,300円と表示されるはずです。 | W66: →R5年度以降、H19.3.31との比較はしていないので、非表示とする。
B67: 特(5) | D67: 315200 | E67: =E66+1 -> 49 | F67: 324600 | G67: =G66+1 -> 38 | H67: 373500 | I67: =I66+1 -> 36 | J67: 392600 | K67: =K66+1 -> 33 | L67: 431500 | M67: =M66+1 -> 31

Sheet 給料表計算シート (hidden)
A1: １ 現在の給料表
E3: 給料表 | F3: 調整額
A4: 行政 | B4: =IF(入力シート!$B$71="行政",入力シート!$B$71,"") ->  | C4: =IF(B4="","",入力シート!$U$71) ->  | D4: =IF(B4="","",入力シート!$AC$71) ->  | E4: =IF(B4="","",VLOOKUP($D$16,給料表!$B$2:$C$3550,2,0)) ->  | F4: =IF(B4="","",VLOOKUP($D$17,給料表!$F$2:$G$3550,2,0)) ->  | G4: =IF(B4="","",1) -> 
A5: 教育（一） | B5: =IF(入力シート!$B$71="教育（一）",入力シート!$B$71,"") ->  | C5: =IF(B5="","",入力シート!$U$71) ->  | D5: =IF(B5="","",入力シート!$AC$71) ->  | E5: =IF(B5="","",VLOOKUP($D$16,給料表!$B$2:$C$3550,2,0)) ->  | F5: =IF(B5="","",VLOOKUP($D$17,給料表!$F$2:$G$3550,2,0)) ->  | G5: =IF(B5="","",4) -> 
A6: 教育（二） | B6: =IF(入力シート!$B$71="教育（二）",入力シート!$B$71,"") -> 教育（二） | C6: =IF(B6="","",入力シート!$U$71) -> 3 | D6: =IF(B6="","",入力シート!$AC$71) -> 50 | E6: =IF(B6="","",VLOOKUP($D$16,給料表!$B$2:$C$3550,2,0)) -> 397900 | F6: =IF(B6="","",VLOOKUP($D$17,給料表!$F$2:$G$3550,2,0)) -> 12000 | G6: =IF(B6="","",5) -> 5
A7: 研究 | B7: =IF(入力シート!$B$71="研究",入力シート!$B$71,"") ->  | C7: =IF(B7="","",入力シート!$U$71) ->  | D7: =IF(B7="","",入力シート!$AC$71) ->  | E7: =IF(B7="","",VLOOKUP($D$16,給料表!$B$2:$C$3550,2,0)) ->  | F7: =IF(B7="","",VLOOKUP($D$17,給料表!$F$2:$G$3550,2,0)) ->  | G7: =IF(B7="","",6) -> 
A8: 技能 | B8: =IF(入力シート!$B$71="技能",入力シート!$B$71,"") ->  | C8: =IF(B8="","",入力シート!$U$71) ->  | D8: =IF(B8="","",入力シート!$AC$71) ->  | E8: =IF(B8="","",VLOOKUP($D$16,給料表!$B$2:$C$3550,2,0)) ->  | F8: =IF(B8="","",VLOOKUP($D$17,給料表!$F$2:$G$3550,2,0)) ->  | G8: =IF(B8="","",10) -> 
A9: 医療（二） | B9: =IF(入力シート!$B$71="医療（二）",入力シート!$B$71,"") ->  | C9: =IF(B9="","",入力シート!$U$71) ->  | D9: =IF(B9="","",入力シート!$AC$71) ->  | E9: =IF(B9="","",VLOOKUP($D$16,給料表!$B$2:$C$3550,2,0)) ->  | F9: =IF(B9="","",VLOOKUP($D$17,給料表!$F$2:$G$3550,2,0)) ->  | G9: =IF(B9="","",8) -> 
A10: 医療（三） | B10: =IF(入力シート!$B$71="医療（三）",入力シート!$B$71,"") ->  | C10: =IF(B10="","",入力シート!$U$71) ->  | D10: =IF(B10="","",入力シート!$AC$71) ->  | E10: =IF(B10="","",VLOOKUP($D$16,給料表!$B$2:$C$3550,2,0)) ->  | F10: =IF(B10="","",VLOOKUP($D$17,給料表!$F$2:$G$3550,2,0)) ->  | G10: =IF(B10="","",9) -> 
C12: 給料月額 | E12: =MAX(E4:E10) -> 397900 | F12: =MAX(F4:F10) -> 12000
B13: 給与表コード | C13: 級 | D13: 号俸
B14: =SUM(G4:G10) -> 5 | C14: =SUM(C4:C10) -> 3 | D14: =SUM(D4:D10) -> 50
B16: =TEXT(B14,"0")&TEXT(C14,"00")&TEXT(D14,"000") -> 503050 | D16: =B16*1 -> 503050
B17: =TEXT(B14,"0")&TEXT(C14,"00") -> 503 | D17: =B17*1 -> 503
A19: 技能 | B19: =IF(OR(入力シート!U76="",入力シート!AC76=""),"","技能") ->  | C19: =IF(B19="","",入力シート!$U$76) ->  | D19: =IF(B19="","",入力シート!$AC$76) ->  | E19: =IF(B19="","",VLOOKUP($D$25,給料表!B:D,3,0)) ->  | G19: =IF(B19="","",10) -> 
C21: 給料月額 | E21: =IF(E19="","",E19) ->  | F21: =MAX(F19:F19) -> 0
B22: 給与表コード | C22: 級 | D22: 号俸
B23: =G19 ->  | C23: =SUM(C19:C19) -> 0 | D23: =SUM(D19:D19) -> 0
B25: =TEXT(B23,"0")&TEXT(C23,"00")&TEXT(D23,"000") -> 00000 | D25: =B25*1 -> 0

Sheet 給料表 (hidden)
A1: 2024-04-01 | B1: 表級号 | C1: 金額 | E1: 調整額 | F1: 表級 | G1: 金額
A2: 給料表 | B2: 101001 | C2: 185000 | E2: 給料表 | F2: 101 | G2: 6700
B3: 101002 | C3: 186100 | F3: 102 | G3: 8600
B4: 101003 | C4: 187300 | F4: 103 | G4: 9800
B5: 101004 | C5: 188400 | F5: 104 | G5: 10500
B6: 101005 | C6: 189500 | F6: 105 | G6: 10800
B7: 101006 | C7: 191200 | F7: 106 | G7: 11400
B8: 101007 | C8: 192900 | F8: 107 | G8: 12300
B9: 101008 | C9: 194500 | F9: 108 | G9: 13000
B10: 101009 | C10: 196100 | F10: 109 | G10: 14700
B11: 101010 | C11: 197800 | F11: 110 | G11: 16300
B12: 101011 | C12: 199400 | F12: 401 | G12: 9100
B13: 101012 | C13: 201000 | F13: 402 | G13: 11300
B14: 101013 | C14: 202600 | F14: 425 | G14: 11700
B15: 101014 | C15: 204400 | F15: 403 | G15: 12400
B16: 101015 | C16: 206100 | F16: 404 | G16: 13300
B17: 101016 | C17: 207800 | F17: 501 | G17: 8600
B18: 101017 | C18: 209100 | F18: 502 | G18: 11100
B19: 101018 | C19: 210700 | F19: 525 | G19: 11400
B20: 101019 | C20: 212300 | F20: 503 | G20: 12000
B21: 101020 | C21: 213800 | F21: 504 | G21: 12900
B22: 101021 | C22: 215300 | F22: 601 | G22: 8200
B23: 101022 | C23: 217000 | F23: 602 | G23: 9500
B24: 101023 | C24: 218600 | F24: 603 | G24: 11000
B25: 101024 | C25: 220200 | F25: 604 | G25: 11900
B26: 101025 | C26: 221800 | F26: 605 | G26: 14800
B27: 101026 | C27: 223500 | F27: 801 | G27: 6300
B28: 101027 | C28: 224800 | F28: 802 | G28: 8200
B29: 101028 | C29: 226100 | F29: 803 | G29: 9300
B30: 101029 | C30: 227400 | F30: 804 | G30: 9800
B31: 101030 | C31: 228500 | F31: 805 | G31: 10700
B32: 101031 | C32: 229700 | F32: 806 | G32: 11400
B33: 101032 | C33: 230800 | F33: 807 | G33: 12300
B34: 101033 | C34: 231900 | F34: 901 | G34: 8200
B35: 101034 | C35: 233000 | F35: 902 | G35: 9500
B36: 101035 | C36: 234100 | F36: 903 | G36: 9800
B37: 101036 | C37: 235200 | F37: 904 | G37: 10200
B38: 101037 | C38: 236300 | F38: 905 | G38: 10600
B39: 101038 | C39: 237300 | F39: 906 | G39: 11800
B40: 101039 | C40: 238300
B41: 101040 | C41: 239200
B42: 101041 | C42: 240100
B43: 101042 | C43: 241100
B44: 101043 | C44: 241900
B45: 101044 | C45: 242700
B46: 101045 | C46: 243400
B47: 101046 | C47: 244000
B48: 101047 | C48: 244600
B49: 101048 | C49: 245200
B50: 101049 | C50: 245800
B51: 101050 | C51: 246400
B52: 101051 | C52: 247000
B53: 101052 | C53: 247500
B54: 101053 | C54: 248000
B55: 101054 | C55: 248400
B56: 101055 | C56: 248700
B57: 101056 | C57: 249100
B58: 101057 | C58: 249300
B59: 101058 | C59: 249600
B60: 101059 | C60: 249900
B61: 101060 | C61: 250200
B62: 101061 | C62: 250500
B63: 101062 | C63: 250800
B64: 101063 | C64: 251100
B65: 101064 | C65: 251400
B66: 101065 | C66: 251700
B67: 101066 | C67: 252000
B68: 101067 | C68: 252300
B69: 101068 | C69: 252600
B70: 101069 | C70: 252900
B71: 101070 | C71: 253200
B72: 101071 | C72: 253600
B73: 101072 | C73: 253900
B74: 101073 | C74: 254200
B75: 101074 | C75: 254500
B76: 101075 | C76: 254800
B77: 101076 | C77: 255100
B78: 101077 | C78: 255400
B79: 101078 | C79: 255700
B80: 101079 | C80: 256000
B81: 101080 | C81: 256400
B82: 101081 | C82: 256700
B83: 101082 | C83: 256800
B84: 101083 | C84: 257100
B85: 101084 | C85: 257500
B86: 101085 | C86: 257800
B87: 101086 | C87: 258100
B88: 101087 | C88: 258400
B89: 101088 | C89: 258700
B90: 101089 | C90: 259000
B91: 101090 | C91: 259400
B92: 101091 | C92: 259700
B93: 101092 | C93: 260000
B94: 101093 | C94: 260400
B95: 102001 | C95: 231900
B96: 102002 | C96: 233400
B97: 102003 | C97: 234800
B98: 102004 | C98: 236400
B99: 102005 | C99: 237900
B100: 102006 | C100: 239400
B101: 102007 | C101: 241000
B102: 102008 | C102: 242500
B103: 102009 | C103: 244000
B104: 102010 | C104: 245400
B105: 102011 | C105: 246800
B106: 102012 | C106: 248200
B107: 102013 | C107: 249400
B108: 102014 | C108: 250600
B109: 102015 | C109: 251800
B110: 102016 | C110: 253000
B111: 102017 | C111: 254200
B112: 102018 | C112: 255300
B113: 102019 | C113: 256400
B114: 102020 | C114: 257500
B115: 102021 | C115: 258500
B116: 102022 | C116: 259500
B117: 102023 | C117: 260500
B118: 102024 | C118: 261500
B119: 102025 | C119: 262600
B120: 102026 | C120: 263400
B121: 102027 | C121: 264300
B122: 102028 | C122: 265200
B123: 102029 | C123: 266100
B124: 102030 | C124: 266900
B125: 102031 | C125: 267700
B126: 102032 | C126: 268500
B127: 102033 | C127: 269200
B128: 102034 | C128: 270000
B129: 102035 | C129: 270800
B130: 102036 | C130: 271500
B131: 102037 | C131: 272200
B132: 102038 | C132: 273000
B133: 102039 | C133: 273800
B134: 102040 | C134: 274500
B135: 102041 | C135: 275200
B136: 102042 | C136: 276000
B137: 102043 | C137: 276800
B138: 102044 | C138: 277500
B139: 102045 | C139: 278300
B140: 102046 | C140: 279000
B141: 102047 | C141: 279700
B142: 102048 | C142: 280400
B143: 102049 | C143: 281300
B144: 102050 | C144: 281700
B145: 102051 | C145: 282500
B146: 102052 | C146: 283200
B147: 102053 | C147: 283800
B148: 102054 | C148: 284500
B149: 102055 | C149: 285100
B150: 102056 | C150: 285800
B151: 102057 | C151: 286400
B152: 102058 | C152: 287100
B153: 102059 | C153: 287700
B154: 102060 | C154: 288400
B155: 102061 | C155: 289000
B156: 102062 | C156: 289700
B157: 102063 | C157: 290400
B158: 102064 | C158: 290900
B159: 102065 | C159: 291400
B160: 102066 | C160: 292000
B161: 102067 | C161: 292500
B162: 102068 | C162: 293100
B163: 102069 | C163: 293600
B164: 102070 | C164: 294100
B165: 102071 | C165: 294700
B166: 102072 | C166: 295400
B167: 102073 | C167: 296000
B168: 102074 | C168: 296500
B169: 102075 | C169: 296900
B170: 102076 | C170: 297200
B171: 102077 | C171: 297300
B172: 102078 | C172: 297700
B173: 102079 | C173: 297900
B174: 102080 | C174: 298200
B175: 102081 | C175: 298400
B176: 102082 | C176: 298600
B177: 102083 | C177: 298900
B178: 102084 | C178: 299100
B179: 102085 | C179: 299400
B180: 102086 | C180: 299700
B181: 102087 | C181: 300000
B182: 102088 | C182: 300300
B183: 102089 | C183: 300600
B184: 102090 | C184: 300900
B185: 102091 | C185: 301200
B186: 102092 | C186: 301600
B187: 102093 | C187: 301700
B188: 102094 | C188: 301900
B189: 102095 | C189: 302300
B190: 102096 | C190: 302700
B191: 102097 | C191: 302900
B192: 102098 | C192: 303200
B193: 102099 | C193: 303600
B194: 102100 | C194: 304000
B195: 102101 | C195: 304200
B196: 102102 | C196: 304500
B197: 102103 | C197: 304800
B198: 102104 | C198: 305100
B199: 102105 | C199: 305300
B200: 102106 | C200: 305600
... 3350 more rows

Sheet 計算シート (hidden)
A1: 条例改正に伴う退職手当額試算シート | K1: ver3.0
M2: 自己都合
A3: １．H３０.３.３１に退職した場合 | M3: 定年・勧奨
D5: 年齢(H30.3.31) | F5: ※１勤続年数 | H5: ※２給料月額(現在) | K5: =MAX(H6:H9) -> 405400 | L5: =IF(入力シート!#REF!=0,1251000,入力シート!#REF!) -> 
F6: ='印刷シート '!K20 -> 33 | H6: =入力シート!BG80 -> 405400 | J6: 新条例 | K6: =IF(F9=1,VLOOKUP($F$6,'H30.4.1'!A5:C50,3,FALSE),VLOOKUP($F$6,'H30.4.1'!A5:C50,2,FALSE)) -> 45.32355 | L6: =SUM(K5*K6)+L5 -> 
F7: ='印刷シート '!T20 -> 34 | G7: 定年引上げ後 | J7: 定年引上げ後 | K7: =IF(F9=1,VLOOKUP($F$7,'H30.4.1'!A6:C51,3,FALSE),VLOOKUP($F$7,'H30.4.1'!A6:C51,2,FALSE)) -> 46.83015
D8: 退職区分 | H8: 退職手当上の給料月額
D9: =入力シート!B14 -> 定年扱い | F9: =IF(D9="自己都合",1,2) -> 2 | H9: =IF(AND($D$9="定年",F6>24),H6*VLOOKUP(D6,#REF!,2,FALSE),H6) -> 405400
D13: 給料月額 | F13: 支給割合 | H13: 調整額 | J13: 退職手当額
D14: =H6 -> 405400 | E14: × | F14: =K6 -> 45.32355 | G14: ＋ | H14: =入力シート!$BD$142+入力シート!$BD$158 -> 1690800 | I14: ＝ | J14: =INT(D14*F14)+H14 -> 20064967
D16: ※１） 育児休業、休職等の期間を除いた年数
D18: １年未満の端数は切り捨て 例）３５年６月 →３５年 （私たちの福利厚生 ６７頁参照）
D20: ※２） 本俸 ＋教職調整額 ＋ 給料の調整額 （ 私たちの福利厚生 ６６頁参照）
D22: 本俸額は給料表上の月額（現給補償額を含まない額）
A27: １．H２７.３.３１に退職した場合
D29: 年齢(H26.3.31) | F29: 勤続年数 | H29: ※給料月額 | J29: ※２給料月額 | M29: =MAX(H30:H34) ->  | N29: =IF(入力シート!#REF!=0,1251000,入力シート!#REF!) -> 
D30: =D6+1 -> 1 | F30: =F6+1 -> 34 | H30: =H6 -> 405400 | J30: =#REF! ->  | L30: 現条例 | M30: =IF(F34=1,VLOOKUP(F30,'H30.4.1'!A6:C73,3,FALSE),VLOOKUP(F30,'H30.4.1'!A6:C73,2,FALSE)) ->  | N30: =IFERROR(SUM(M29*M30)+N29,0) -> 0
D31: ＋１歳 | F31: ＋１年 | H31: 昇給は考慮しない | M31: =MAX(J30:J34) -> 
L32: 旧条例 | M32: =IF(F6<=8,0,IF(F34=1,VLOOKUP(#REF!,A6:C75,3,FALSE),VLOOKUP(#REF!,A6:C75,2,FALSE))) ->  | N32: =SUM(M31*M32) -> 
D33: 退職区分 | H33: 加算後の給料月額 | J33: 退職手当上の給料月額
D34: =IF(入力シート!#REF!="",入力シート!B14,入力シート!#REF!) ->  | F34: =IF(D34="自己都合",1,2) ->  | H34: =IF(F30>24,H30*VLOOKUP(D30,#REF!,2,FALSE)) ->  | J34: =IF(D30=60,J30,IF(F30-7>24,J30*VLOOKUP(D30-7,#REF!,2,FALSE))) -> 
D37: 給料月額 | F37: 支給割合 | H37: 調整額 | J37: 退職手当額
D38: =IF(N30>N32,M29,M31) ->  | E38: × | F38: =IF(N30>N32,M30,M32) ->  | G38: ＋ | H38: =IF(N32>N30,0,IF(入力シート!#REF!=0,1251000,入力シート!#REF!)) ->  | I38: ＝ | J38: =IFERROR(INT(D38*F38)+H38,"") -> 
A42: ３．おおよその差額
H44: =J38-J14 ->  | I44: 円

Sheet Sheet1 (hidden)
B2: 行政職給料表が適用されている者
B3: 退職時前５年間の号俸を確認してください。
B4: 例１）退職時前５年間 ２級 である。
B5: 第10号区分に ６０月 と入力します。
B6: 例２）退職時より３年前に４級に昇給し、それ以前は３級であった。
B7: 第9号区分に ２４月（２年間）、第8号区分に ３６月（３年間）と入力します。
B9: 教職職給料表(一)(二)が適用されている者
B10: 校長職にある者・・・第５号区分に ６０月 と入力
B11: 副校長職にある者・・・第６号区分に ６０月 と入力
B12: 教頭職にある者・・・第７号区分に ６０月 と入力
B13: 特２級の者・・・第８号区分に ６０月 と入力
B14: ２級の者のうち，勤続期間が１０年以上２６年未満の者・・・第９号区分に ６０月 と入力
B15: ２級の者のうち，勤続期間が２６年以上３５年未満の者・・・第８号区分に ６０月 と入力
B16: ２級の者のうち，勤続期間が３５年以上の者・・・第７号区分に３６月、第８号区分に２４月と入力
B17: １級又は２級の者・・・第１０号区分に ６０月 と入力
B30: 〇休職 〇停職 〇大学院修学休業 〇育児休業 | D30: 月の初日から末日まで勤務しない月が１月以上あったときは、その月数の２分の１ （例）休職期間 平成２５年２月１４日～平成２６年２月１３日の場合 平成２５年３月 ～ 平成２６年１月までの １１月×１/２＝５．５月が除算となる ※ただし、育児休業の場合は、当該育児休業に係る子が１歳に達した日の属する月まで の期間については、その月数の３分の１
B34: 〇高齢者部分休業の期間 | D34: ７時間４５分をもって１日とし、３０日をもって１月として換算した月数の２分の１
B36: 〇組合専従の期間 〇自己啓発等休業 〇配偶者同行休業 | D36: 月の初日から末日まで勤務しない月が１月以上あったときは、その月数の全部の月数 ※ただし、自己啓発等休業のうち、公務運営に特に資するものと認められること等要件に 該当する場合は、その月数の２分の１

Sheet Sheet2 (hidden)
A1: 次年度 調整額計算
B3: 前年度a
C4: 4号 | D4: ５号 | E4: ６号 | F4: 7号 | G4: 8号 | H4: 9号 | I4: 10号 | J4: 合計
C5: =入力シート!#REF! ->  | D5: =入力シート!#REF! ->  | E5: =入力シート!#REF! ->  | F5: =入力シート!#REF! ->  | G5: =入力シート!#REF! ->  | H5: =入力シート!#REF! ->  | I5: =入力シート!#REF! ->  | J5: =SUM(C5:I5) ->  | K5: =IF(J5<60,J5+12,J5) -> 
B6: a＋12 | C6: =IF(C5>0,C5+12,C5) ->  | D6: =IF(D5>0,D5+12,D5) ->  | E6: =IF(AND(D5=0,E5>0),E5+12,E5) ->  | F6: =IF(AND(E5=0,F5>0),F5+12,F5) ->  | G6: =IF(AND(F5=0,G5>0),G5+12,G5) ->  | H6: =IF(AND(G5=0,H5>0),H5+12,H5) ->  | I6: =IF(AND(H5=0,I5>0),I5+12,I5) -> 
C7: =IF(C6>60,60,C6) -> 
B8: a-12 | C8: =C5-12 -> 
C9: 1 | D9: 2 | E9: 3 | F9: 4 | G9: 5 | H9: 6 | I9: 7
B10: 1 | C10: =$C$7 ->  | D10: =IF(AND(C5=0),$D$7,D5) ->  | E10: =IF(AND(C5=0,D5=0),$E$7,E5) ->  | F10: =IF(AND(C5=0,D5=0,E5=0),$F$7,F5) ->  | G10: =IF(AND(D5=0,E5=0,F5=0,C5=0),$G$7,G5) ->  | H10: =IF(AND(C5=0,E5=0,F5=0,G5=0,D5=0),$H$7,H5) ->  | I10: =IF(I$8<0,I$6-I$6,I$6-12) ->  | J10: =SUM(C10:I10) ->  | K10: 1
B11: 2 | D11: =D10 ->  | E11: =E10 ->  | F11: =F10 ->  | G11: =$G$7 ->  | H11: =IF(H$8<0,0,H$5-12) ->  | I11: 0 | K11: 2
B12: 3 | D12: =D11 ->  | E12: =E10 ->  | F12: =F10 ->  | G12: =IF(G$8<0,0,IF(OR(H5>0,I5>0,J5>0),60-D5-E5-F5-C5,G6)) ->  | H12: 0 | I12: 0 | K12: 3
B13: 4 | D13: =D12 ->  | E13: =E10 ->  | F13: =IF(F$8<0,0,IF(OR(G5>0,H5>0,I5>0),60-C6-D6-E6,F8)) ->  | G13: 0 | H13: 0 | I13: 0 | K13: 4
B14: 5 | D14: =D13 ->  | E14: =IF(E$8<0,0,IF(OR(F5>0,G5>0,H5>0,I4>0),60-C6-D6,E8)) ->  | F14: 0 | G14: 0 | H14: 0 | I14: 0 | K14: 5
B15: 6 | D15: =IF(D$6<0,0,IF(OR(E5>0,F5>0,G4>0,H5>0),60-C6,D8)) ->  | E15: 0 | F15: 0 | G15: 0 | H15: 0 | I15: 0 | K15: 6
B16: 7 | C16: =IF(C$8<0,C$6-C$6,C$6-12) ->  | D16: 0 | E16: 0 | F16: 0 | G16: 0 | H16: 0 | I16: 0 | K16: 7
C18: =MATCH(K5,J10:J16,0) -> 
B19: 次年度の調整月額
C20: 4号 | D20: ５号 | E20: ６号 | F20: 7号 | G20: 8号 | H20: 9号 | I20: 10号
C21: =IFERROR(VLOOKUP($C$18,$B$10:$I$16,2,FALSE),0) -> 0 | D21: =IFERROR(VLOOKUP($C$18,$B$10:$I$16,3,FALSE),0) -> 0 | E21: =IFERROR(VLOOKUP($C$18,$B$10:$I$16,4,FALSE),0) -> 0 | F21: =IFERROR(VLOOKUP($C$18,$B$10:$I$16,5,FALSE),0) -> 0 | G21: =IFERROR(VLOOKUP($C$18,$B$10:$I$16,6,FALSE),0) -> 0 | H21: =IFERROR(VLOOKUP($C$18,$B$10:$I$16,7,FALSE),0) -> 0 | I21: =IFERROR(VLOOKUP($C$18,$B$10:$I$16,8,FALSE),0) -> 0

Sheet Sheet3 (hidden)
A15: ※ | B15: 退職手当の給料月額 | E15: ＝ | F15: 本俸（給料表の月額） | I15: ＋ | J15: 教職調整額 | L15: ＋ | M15: 給料の調整額
L16: （福利厚生ハンドブック 27貢参照）
B18: 本俸 | D18: ・・・・・ | E18: 給料表上の月額です。
B20: 教職調整額 | D20: ・・・・・ | E20: 県立：副校長・教頭 ７，７００円、小中学校：副校長・教頭 ７，５００円、教諭 給料表上の月額×4％ （R7.4.1現在）
B22: 給料の調整額 | D22: ・・・・・ | E22: 特別支援学校（学級）に従事する教員が該当します。調整基本額×1.00（給与テキスト参照） （R7.4.1現在）

Sheet 除算 (hidden)
B1: 除算１ | F1: 除算２
B3: 休職 | C3: 2 | F3: 休職 | G3: 2
B4: 停職 | C4: 2 | F4: 停職 | G4: 2
B5: 大学院修学 | C5: 2 | F5: 大学院修学 | G5: 2
B6: 育休 | C6: 3 | F6: 育休 | G6: 2
B7: 育短勤務 | C7: 3 | F7: 育短勤務 | G7: 3
B8: 高齢者部分休業 | C8: 2 | F8: 高齢者部分休業 | G8: 2
B9: 組合専従 | C9: 1 | F9: 組合専従 | G9: 1
B10: 自己啓発 | C10: 1 | F10: 自己啓発 | G10: 1
B11: 配偶者同行休業 | C11: 1 | F11: 配偶者同行休業 | G11: 1

Sheet H30.4.1 (hidden)
F1: 新支給率
D2: 新
B3: 定年 | C3: 自己都合 | G3: 1985-03-31 | H3: =DATEVALUE(G3) -> 
A4: 年 数
A5: 0 | C5: 0
A6: 1 | B6: 0.837 | C6: 0.5022
A7: 2 | B7: 1.674 | C7: 1.0044
A8: 3 | B8: 2.511 | C8: 1.5066
A9: 4 | B9: 3.348 | C9: 2.0088
A10: 5 | B10: 4.185 | C10: 2.511
A11: 6 | B11: 5.022 | C11: 3.0132
A12: 7 | B12: 5.859 | C12: 3.5154
A13: 8 | B13: 6.696 | C13: 4.0176
A14: 9 | B14: 7.533 | C14: 4.5198
A15: 10 | B15: 8.37 | C15: 5.022
A16: 11 | B16: 11.613375 | C16: 7.43256
A17: 12 | B17: 12.76425 | C17: 8.16912
A18: 13 | B18: 13.915125 | C18: 8.90568
A19: 14 | B19: 15.066 | C19: 9.64224
A20: 15 | B20: 16.216875 | C20: 10.3788
A21: 16 | B21: 17.890875 | C21: 12.88143
A22: 17 | B22: 19.564875 | C22: 14.08671
A23: 18 | B23: 21.238875 | C23: 15.29199
A24: 19 | B24: 22.912875 | C24: 16.49727
A25: 20 | B25: 24.586875 | C25: 19.6695
A26: 21 | B26: 26.260875 | C26: 21.3435
A27: 22 | B27: 27.934875 | C27: 23.0175
A28: 23 | B28: 29.608875 | C28: 24.6915
A29: 24 | B29: 31.282875 | C29: 26.3655
A30: 25 | B30: 33.27075 | C30: 28.0395
A31: 26 | B31: 34.77735 | C31: 29.3787
A32: 27 | B32: 36.28395 | C32: 30.7179
A33: 28 | B33: 37.79055 | C33: 32.0571
A34: 29 | B34: 39.29715 | C34: 33.3963
A35: 30 | B35: 40.80375 | C35: 34.7355
A36: 31 | B36: 42.31035 | C36: 35.7399
A37: 32 | B37: 43.81695 | C37: 36.7443
A38: 33 | B38: 45.32355 | C38: 37.7487
A39: 34 | B39: 46.83015 | C39: 38.7531
A40: 35 | B40: 47.709 | C40: 39.7575
A41: 36 | B41: 47.709 | C41: 40.7619
A42: 37 | B42: 47.709 | C42: 41.7663
A43: 38 | B43: 47.709 | C43: 42.7707
A44: 39 | B44: 47.709 | C44: 43.7751
A45: 40 | B45: 47.709 | C45: 44.7795
A46: 41 | B46: 47.709 | C46: 45.7839
A47: 42 | B47: 47.709 | C47: 46.7883
A48: 43 | B48: 47.709 | C48: 47.709
A49: 44 | B49: 47.709 | C49: 47.709
A50: 45 | B50: 47.709 | C50: 47.709

Sheet 育休特殊事例入力方法 (hidden)
B1: 育児休業から復帰後、再度、同一の子の育児休業を取得した場合について
B4: 入力シートの除算期間の子の誕生日欄は、行毎に子の誕生日が異なることを想定していますので、
B5: 期間を空けて同じ子の育児休業を取得した場合は、正しく計算されない事があります。
B6: その場合は、お手数をおかけしますが下記のとおり入力してください。
B8: ①子どもの１歳の誕生日を越えて、１回目の育児休業を取得した場合
B9: ※１歳の誕生日：H23.5.26
C21: ２回目の育児休業の、子の誕生日欄は「２回目の育児休業の開始日の１年前の日」を
C22: 入力してください。 １／２の除算率で計算されます。
B24: ②子どもの１歳の誕生日よりも前に１回目の育児休業が終了した場合
B25: ※１歳の誕生日：H23.5.26
C37: この場合は子の誕生日をそのまま入力してください。
C38: １歳に達した日の属する月までは１／３、 以後は１／２の除算率で計算されます。
B40: 同じ子について再度育児休業を取得した場合は、最初の育児休業の期間が子どもの１歳の誕生日よりも前に終了したかどうかで、子の誕生日欄を入力してください。

Sheet 基本額式 (hidden)
B6: 退職手当 の基本額

Sheet 7割措置 (hidden)
AL8: 別の図を組み合わせている箇所
AL9: ・「６０歳」と吹き出し
AL10: ・「退職時」と吹き出し
AL11: ・「勤続年数に」と「応じた支給率」
AL12: ・「支給率■」と「ア」及び「イ」
